{"text_format":"1","workbook":"xlsx","n_sheets":15,"sheets":["امتیازات","فعالیت آموزشی","نوآوری آموزشی ","طرح درس","بسته ها یا کارگروه  تعالی","مقالات","پایان نامه ها","پوستر","سخنرانی","کتاب","ثبت اختراع","کسب رتبه","جذب گرنت","داوری ","فعالیت اجرایی"],"not_rendered":{"charts":0,"images":0,"macros":1,"external_links":0,"defined_names":1,"comments":1,"pivot_tables":0},"unopened":[],"bounds":{"document_bytes":16777216,"sheet_cells":100000,"rows_first":2000,"rows_last":500,"rows_between":2000,"halvings":0,"cell_chars":16384,"cell_head_chars":4096},"cells_cut":0,"cells_raw":0,"read":"whole","date_system":"1900"}

{"sheet":"امتیازات","index":0,"n_rows":18,"n_cols":6,"rows_kept":18,"cut":false,"hidden":false,"merged":[]}
["نام",null,null,null,null,"فهرست صفحات"]
["نام خانوادگی",null,null,null,null,{"$f":"IFERROR(HYPERLINK(\"#'\"&REPLACE(INDEX(ali,ROW(A3)),1,FIND(\"]\",INDEX(ali,ROW(A3))),\"\")&\"'!a1\",REPLACE(INDEX(ali,ROW(A3)),1,FIND(\"]\",INDEX(ali,ROW(A3))),\"\"))&IF(NOW()>0,\"\",\"\"),\"\")","v":"نوآوری آموزشی "}]
[" عنوان پست سازمانی","Educantinal Assistant Professor",null,null,null,{"$f":"IFERROR(HYPERLINK(\"#'\"&REPLACE(INDEX(ali,ROW(A4)),1,FIND(\"]\",INDEX(ali,ROW(A4))),\"\")&\"'!a1\",REPLACE(INDEX(ali,ROW(A4)),1,FIND(\"]\",INDEX(ali,ROW(A4))),\"\"))&IF(NOW()>0,\"\",\"\"),\"\")","v":"طرح درس"}]
["تعداد واحد موظفی",28,null,null,null,{"$f":"IFERROR(HYPERLINK(\"#'\"&REPLACE(INDEX(ali,ROW(A5)),1,FIND(\"]\",INDEX(ali,ROW(A5))),\"\")&\"'!a1\",REPLACE(INDEX(ali,ROW(A5)),1,FIND(\"]\",INDEX(ali,ROW(A5))),\"\"))&IF(NOW()>0,\"\",\"\"),\"\")","v":"بسته ها یا کارگروه  تعالی"}]
["امتیاز آموزشی مکتسبه",0,null,null,null,{"$f":"IFERROR(HYPERLINK(\"#'\"&REPLACE(INDEX(ali,ROW(A6)),1,FIND(\"]\",INDEX(ali,ROW(A6))),\"\")&\"'!a1\",REPLACE(INDEX(ali,ROW(A6)),1,FIND(\"]\",INDEX(ali,ROW(A6))),\"\"))&IF(NOW()>0,\"\",\"\"),\"\")","v":"مقالات"}]
["کیفیت آموزشی",0,null,null,null,{"$f":"IFERROR(HYPERLINK(\"#'\"&REPLACE(INDEX(ali,ROW(A7)),1,FIND(\"]\",INDEX(ali,ROW(A7))),\"\")&\"'!a1\",REPLACE(INDEX(ali,ROW(A7)),1,FIND(\"]\",INDEX(ali,ROW(A7))),\"\"))&IF(NOW()>0,\"\",\"\"),\"\")","v":"پایان نامه ها"}]
[" امتیاز فعالیت آموزشی طول سال قابل احتساب",0,null,null,null,{"$f":"IFERROR(HYPERLINK(\"#'\"&REPLACE(INDEX(ali,ROW(A8)),1,FIND(\"]\",INDEX(ali,ROW(A8))),\"\")&\"'!a1\",REPLACE(INDEX(ali,ROW(A8)),1,FIND(\"]\",INDEX(ali,ROW(A8))),\"\"))&IF(NOW()>0,\"\",\"\"),\"\")","v":"پوستر"}]
[" امتیاز  مکتسبه نوآوری آموزشی کارگاه و ژورنال کلاب و طرح درس ",0,null,null,null,{"$f":"IFERROR(HYPERLINK(\"#'\"&REPLACE(INDEX(ali,ROW(A9)),1,FIND(\"]\",INDEX(ali,ROW(A9))),\"\")&\"'!a1\",REPLACE(INDEX(ali,ROW(A9)),1,FIND(\"]\",INDEX(ali,ROW(A9))),\"\"))&IF(NOW()>0,\"\",\"\"),\"\")","v":"سخنرانی"}]
[" امتیاز نوآوری آموزشی کارگاه و ژورنال کلاب و طرح درس قابل احتساب",0,null,null,null,{"$f":"IFERROR(HYPERLINK(\"#'\"&REPLACE(INDEX(ali,ROW(A10)),1,FIND(\"]\",INDEX(ali,ROW(A10))),\"\")&\"'!a1\",REPLACE(INDEX(ali,ROW(A10)),1,FIND(\"]\",INDEX(ali,ROW(A10))),\"\"))&IF(NOW()>0,\"\",\"\"),\"\")","v":"کتاب"}]
["امنباز  مکتسبه مشارکت در کارگروه های عدالت و تعالی در آموزش",0,null,null,null,{"$f":"IFERROR(HYPERLINK(\"#'\"&REPLACE(INDEX(ali,ROW(A11)),1,FIND(\"]\",INDEX(ali,ROW(A11))),\"\")&\"'!a1\",REPLACE(INDEX(ali,ROW(A11)),1,FIND(\"]\",INDEX(ali,ROW(A11))),\"\"))&IF(NOW()>0,\"\",\"\"),\"\")","v":"ثبت اختراع"}]
["امنباز مشارکت در کارگروه های عدالت و تعالی در آموزش قابل احتساب",0,null,null,null,{"$f":"IFERROR(HYPERLINK(\"#'\"&REPLACE(INDEX(ali,ROW(A12)),1,FIND(\"]\",INDEX(ali,ROW(A12))),\"\")&\"'!a1\",REPLACE(INDEX(ali,ROW(A12)),1,FIND(\"]\",INDEX(ali,ROW(A12))),\"\"))&IF(NOW()>0,\"\",\"\"),\"\")","v":"کسب رتبه"}]
["جمع امتیاز پژوهشی مکتسبه",0,null,null,null,{"$f":"IFERROR(HYPERLINK(\"#'\"&REPLACE(INDEX(ali,ROW(A13)),1,FIND(\"]\",INDEX(ali,ROW(A13))),\"\")&\"'!a1\",REPLACE(INDEX(ali,ROW(A13)),1,FIND(\"]\",INDEX(ali,ROW(A13))),\"\"))&IF(NOW()>0,\"\",\"\"),\"\")","v":"جذب گرنت"}]
["امتیاز پژوهشی قابل احتساب",0,null,null,null,{"$f":"IFERROR(HYPERLINK(\"#'\"&REPLACE(INDEX(ali,ROW(A14)),1,FIND(\"]\",INDEX(ali,ROW(A14))),\"\")&\"'!a1\",REPLACE(INDEX(ali,ROW(A14)),1,FIND(\"]\",INDEX(ali,ROW(A14))),\"\"))&IF(NOW()>0,\"\",\"\"),\"\")","v":"داوری "}]
["امتیاز اجرایی مکتسبه",0,null,null,null,{"$f":"IFERROR(HYPERLINK(\"#'\"&REPLACE(INDEX(ali,ROW(A15)),1,FIND(\"]\",INDEX(ali,ROW(A15))),\"\")&\"'!a1\",REPLACE(INDEX(ali,ROW(A15)),1,FIND(\"]\",INDEX(ali,ROW(A15))),\"\"))&IF(NOW()>0,\"\",\"\"),\"\")","v":"فعالیت اجرایی"}]
["امتیاز اجرایی قابل احتساب",0,null,null,null,{"$f":"IFERROR(HYPERLINK(\"#'\"&REPLACE(INDEX(ali,ROW(A16)),1,FIND(\"]\",INDEX(ali,ROW(A16))),\"\")&\"'!a1\",REPLACE(INDEX(ali,ROW(A16)),1,FIND(\"]\",INDEX(ali,ROW(A16))),\"\"))&IF(NOW()>0,\"\",\"\"),\"\")","v":""}]
[" کل امتیازات ",0,null,null,null,{"$f":"IFERROR(HYPERLINK(\"#'\"&REPLACE(INDEX(ali,ROW(A17)),1,FIND(\"]\",INDEX(ali,ROW(A17))),\"\")&\"'!a1\",REPLACE(INDEX(ali,ROW(A17)),1,FIND(\"]\",INDEX(ali,ROW(A17))),\"\"))&IF(NOW()>0,\"\",\"\"),\"\")","v":""}]
[]
[null,null,null,null,null,{"$f":"IFERROR(HYPERLINK(\"#'\"&REPLACE(INDEX(ali,ROW(A19)),1,FIND(\"]\",INDEX(ali,ROW(A19))),\"\")&\"'!a1\",REPLACE(INDEX(ali,ROW(A19)),1,FIND(\"]\",INDEX(ali,ROW(A19))),\"\"))&IF(NOW()>0,\"\",\"\"),\"\")","v":""}]

{"sheet":"فعالیت آموزشی","index":1,"n_rows":3,"n_cols":15,"rows_kept":3,"cut":false,"hidden":false,"merged":[]}
["برگشت","کمیت تدریس  ","تعداد","امتیاز","مستند مورد نیاز",null,null,null,null,null,null,null,null,"بله ",1]
[null,"واحد درسی ارائه شده در نیمسال فعلی و گذشته",null,0,"ابلاغ آموزشی",null,null,null,null,null,null,null,null,"خیر",0]
[null,"کیفیت آموزشی",null,0,"توسط مدیر محترم EDC   تکمیل می گردد"]

{"sheet":"نوآوری آموزشی ","index":2,"n_rows":9,"n_cols":12,"rows_kept":9,"cut":false,"hidden":false,"merged":[]}
["برگشت","عنوان کوریکلوم آموزشی اصلاح شده","تعداد ","امتیاز",null,"عنوان نوآوری در فعالیتهای آموزشی یا فعالیت های دانش پژوهی","تعداد ","امتیاز",null,"عنوان  طرح پذیرفته شده در جشنواره دانشگاهی شهید مطهری  ","تعداد ","امتیاز"]
[null,null,null,0,null,null,null,0,null,null,null,0]
[null,null,null,0,null,null,null,0,null,null,null,0]
[null,null,null,0,null,null,null,0,null,null,null,0]
[null,null,null,0,null,null,null,0,null,null,null,0]
[null,null,null,null,null," "]
[null," شرکت در کارگاه های توانمند سازی و ژورنال کلاب ها",null,0]
[null,"ارائه کارگاه توانمند سازی یا ژورنال کلاب",null,0]
["جمع",null,null,0]

{"sheet":"طرح درس","index":3,"n_rows":14,"n_cols":16,"rows_kept":14,"cut":false,"hidden":false,"merged":[]}
["برگشت","عنوان درس دارای طرح ","تعداد واحد ","امتیاز کسب شده در ارزشیابی","امتیاز",null,null,null,null,null,null,null,null,null,"نمره چک لیست"]
[null,null,null,null," ",null,null,null,null,null,null,null,null,null,">80",1]
[null,null,null,null," ",null,null,null,null,null,null,null,null,{"$f":"SUM(C2:C13)","v":0},"80-60",0.8]
[null,null,null,null," ",null,null,null,null,null,null,null,null,null,"60- 40",0.6]
[null,null,null,null," ",null,null,null,null,null,null,null,null,null,"20-40",0.4]
[null,null,null,null," ",null,null,null,null,null,null,null,null,null,"<20",0.2]
[null,null,null,null," "]
[null,null,null,null," "]
[null,null,null," "," "]
[null,null,null," "," "]
[null,null,null," "," "]
[null,null,null," "," "]
[null,null,null," "," "]
[null,null,null,null,{"$f":"SUM(E2:E13)","v":0},null,null,null,null,null,null,null,null,{"$f":"SUM(C2:C13)","v":0}]

{"sheet":"بسته ها یا کارگروه  تعالی","index":4,"n_rows":8,"n_cols":9,"rows_kept":8,"cut":false,"hidden":false,"merged":[]}
["برگشت","عنوان کارگروه","مسوولیت"," امتیاز "," مستند "]
[null,null,null,{"$f":"IF(C2=\"مسوول کارگروه\",5,IF(C2=\"عضو کارگروه\",3,0))","v":0},"تایید مدیر محترم EDC ",null,null,null,0]
[null,null,null,{"$f":"IF(C3=\"مسوول کارگروه\",5,IF(C3=\"عضو کارگروه\",3,0))","v":0},"تایید مدیر محترم EDC ",null,null,null,0]
[null,null,null,null,"تایید مدیر محترم EDC "]
[null,null,null,null,"تایید مدیر محترم EDC "]
[null,null,null,null,"تایید مدیر محترم EDC "]
[null,null,null,null,"تایید مدیر محترم EDC "]
[null,"جمع هر دو",null,{"$f":"SUM(D2:D7)","v":0}]

{"sheet":"مقالات","index":5,"n_rows":27,"n_cols":16,"rows_kept":27,"cut":false,"hidden":false,"merged":[]}
["برگشت","ردیف","عنوان مقاله","عنوان مجله","ایندکس","نوع مقاله ","نوع مشارکت ","Q","تعداد نویسندگان","امتیاز  پایه","ضریب نوع مقاله","ضریب Q","ضریب نویسندگی","ضریب مشارکت وتعداد","امتیاز نهای","لینک مقاله"]
[null,null,null,null,null,null,null,null,null," "," "," "," ",{"$f":"J2 * K2 * L2* M2","v":{"$error":"#VALUE!"}}," "]
[null,null,null,null,null,null,null,null,null," "," "," "," ",{"$error":"#VALUE!"}," "]
[null,null,null,null,null,null,null,null,null," "," "," "," ",{"$error":"#VALUE!"}," "]
[null,null,null,null,null,null,null,null,null," "," "," "," ",{"$error":"#VALUE!"}," "]
[null,null,null,null,null,null,null,null,null," "," "," "," ",{"$error":"#VALUE!"}," "]
[null,null,null,null,null,null,null,null,null," "," "," "," ",{"$error":"#VALUE!"}," "]
[null,null,null,null,null,null,null,null,null," "," "," "," ",{"$error":"#VALUE!"}," "]
[null,null,null,null,null,null,null,null,null," "," "," "," ",{"$error":"#VALUE!"}," "]
[null,null,null,null,null,null,null,null,null," "," "," "," ",{"$error":"#VALUE!"}," "]
[null,null,null,null,null,null,null,null,null," "," "," "," ",{"$error":"#VALUE!"}," "]
[null,null,null,null,null,null,null,null,null," "," "," "," ",{"$error":"#VALUE!"}," "]
[null,null,null,null,null,null,null,null,null," "," "," "," ",{"$error":"#VALUE!"}," "]
[null,null,null,null,null,null,null,null,null," "," "," "," ",{"$error":"#VALUE!"}," "]
[null,null,null,null,null,null,null,null,null," "," "," "," ",{"$error":"#VALUE!"}," "]
[null,null,null,null,null,null,null,null,null," "," "," "," ",{"$error":"#VALUE!"}," "]
[null,null,null,null,null,null,null,null,null," "," "," "," ",{"$error":"#VALUE!"}," "]
[null,null,null,null,null,null,null,null,null," "," "," "," ",{"$error":"#VALUE!"}," "]
[null,null,null,null,null,null,null,null,null," "," "," "," ",{"$error":"#VALUE!"}," "]
[null,null,null,null,null,null,null,null,null," "," "," "," ",{"$error":"#VALUE!"}," "]
[null,null,null,null,null,null,null,null,null," "," "," "," ",{"$error":"#VALUE!"}," "]
[null,null,null,null,null,null,null,null,null," "," "," "," ",{"$error":"#VALUE!"}," "]
[null,null,null,null,null,null,null,null,null," "," "," "," ",{"$error":"#VALUE!"}," "]
[null,null,null,null,null,null,null,null,null," "," "," "," ",{"$error":"#VALUE!"}," "]
[null,null,null,null,null,null,null,null,null," "," "," "," ",{"$error":"#VALUE!"}," "]
[null,null,null,null,null,null,null,null,null," "," "," "," ",{"$error":"#VALUE!"}," "]
[null,null,"جمع کل مقالات ",null,null,null,null,null,null,null,null,null,null,null,{"$f":" SUM(O2:O26)","v":0}]

{"sheet":"پایان نامه ها","index":6,"n_rows":12,"n_cols":16,"rows_kept":12,"cut":false,"hidden":false,"merged":[]}
["برگشت","ردیف","عنوان پایان نامه  یا طرح پژوهشی"," نقش  پژوهشگر و وضعیت پایان نامه یا طرح پژوهشی","امتیاز اولیه"," امتیاز نهایی","لینک مستندات"]
[null,null,null,null," ",{"$f":"IF(ISNUMBER(Table2[[#This Row],[امتیاز اولیه]]),Table2[[#This Row],[امتیاز اولیه]],\" \")","v":" "},null,null,null,null,null,null,null,null,"مجری طرح پژوهشی  اتمام یافته",5]
[null,null,null,null," ",{"$f":"IF(ISNUMBER(Table2[[#This Row],[امتیاز اولیه]]),Table2[[#This Row],[امتیاز اولیه]],\" \")","v":" "},null,null,null,null,null,null,null,null,"همکار طرح پژوهشی اتمام یافته",3]
[null,null,null,null," ",{"$f":"IF(ISNUMBER(Table2[[#This Row],[امتیاز اولیه]]),Table2[[#This Row],[امتیاز اولیه]],\" \")","v":" "},null,null,null,null,null,null,null,null,"ناظر طرح پژوهشی اتمام یافته",1]
[null,null,null,null," ",{"$f":"IF(ISNUMBER(Table2[[#This Row],[امتیاز اولیه]]),Table2[[#This Row],[امتیاز اولیه]],\" \")","v":" "},null,null,null,null,null,null,null,null,"استاد راهنمای  پایان نامه دفاع شده",5]
[null,null,null,null," ",{"$f":"IF(ISNUMBER(Table2[[#This Row],[امتیاز اولیه]]),Table2[[#This Row],[امتیاز اولیه]],\" \")","v":" "},null,null,null,null,null,null,null,null,"استاد مشاور پایان نامه دفاع شده",3]
[null,null,null,null," ",{"$f":"IF(ISNUMBER(Table2[[#This Row],[امتیاز اولیه]]),Table2[[#This Row],[امتیاز اولیه]],\" \")","v":" "}]
[null,null,null,null," ",{"$f":"IF(ISNUMBER(Table2[[#This Row],[امتیاز اولیه]]),Table2[[#This Row],[امتیاز اولیه]],\" \")","v":" "}]
[null,null,null,null," ",{"$f":"IF(ISNUMBER(Table2[[#This Row],[امتیاز اولیه]]),Table2[[#This Row],[امتیاز اولیه]],\" \")","v":" "}]
[null,null,null,null," ",{"$f":"IF(ISNUMBER(Table2[[#This Row],[امتیاز اولیه]]),Table2[[#This Row],[امتیاز اولیه]],\" \")","v":" "}]
[null,null,null,null,{"$f":" SUM(E2:E10)","v":0}]
[null,"جمع نهایی",null,null,{"$f":"VLOOKUP(Table2[[#This Row],[ نقش  پژوهشگر و وضعیت پایان نامه یا طرح پژوهشی]],$O$2:$P$6,2,0)","v":{"$error":"#N/A"}},{"$f":"SUM(F2:F10)","v":0}]

{"sheet":"پوستر","index":7,"n_rows":9,"n_cols":20,"rows_kept":9,"cut":false,"hidden":false,"merged":[]}
["برگشت","ردیف","عنوان ارائه","نام کنگره","محل برگزاری"," نوع ارائه ","امتیاز نهایی"," لینک مستندات",null,null,null,null,null,null,null,null,null,null,"نوع ارائه","امتياز"]
[null,1,null,null,null,null," ",null,null,null,null,null,null,null,null,null,null,null,"پوستر بین المللی",0.5]
[null,null,null,null,null,null," "]
[null,null,null,null,null,null," "]
[null,null,null,null,null,null," "]
[null,null,null,null,null,null," "]
[null,null,null,null,null,null," ",null,null,null,null,null,null,null,null,null,null,null,"پوستر ملی",0.5]
[null,null,null,null,null,null," "]
[null,"جمع نهایی",null,null,null,null,{"$f":" SUM(G2:G8)","v":0}]

{"sheet":"سخنرانی","index":8,"n_rows":8,"n_cols":12,"rows_kept":8,"cut":false,"hidden":false,"merged":[]}
["برگشت","ردیف","عنوان ارائه","نام کنگره","محل برگزاری"," نوع ارائه ","نحوه مشارکت","تعداد نویسندگان","امتیاز پایه","ضریب ارائه","امتیاز نهایی"," لینک مستندات"]
[null,{"$f":"ROW()","v":2},null,null,null,null,null,null," "," ",{"$f":"I2*J2","v":{"$error":"#VALUE!"}}," "]
[null,{"$f":"ROW()","v":3},null,null,null,null,null,null," "," ",{"$error":"#VALUE!"}," "]
[null,{"$f":"ROW()","v":4},null,null,null,null,null,null," "," ",{"$error":"#VALUE!"}," "]
[null,{"$f":"ROW()","v":5},null,null,null,null,null,null," "," ",{"$error":"#VALUE!"}," "]
[null,{"$f":"ROW()","v":6},null,null,null,null,null,null," "," ",{"$error":"#VALUE!"}," "]
[null,{"$f":"ROW()","v":7},null,null,null,null,null,null," "," ",{"$error":"#VALUE!"}," "]
["جمع",null,null,null,null,null,null,null,null,null,{"$f":" SUM(K2:K7)","v":{"$error":"#VALUE!"}},{"$f":" SUM(L2:L7)","v":0}]

{"sheet":"کتاب","index":9,"n_rows":7,"n_cols":8,"rows_kept":7,"cut":false,"hidden":false,"merged":[]}
["برگشت","ردیف","نام کتاب ","تعداد صفحه","نقش پزوهشگر","امتیاز پایه","امتیاز کل بعد از اعمال شرط سقف","مستندات"]
[{"$f":"COUNTA(C:C)","v":1},null,null,null,null," "," "]
[null,null,null,null,null," "," "]
[null,null,null,null,null," "," "]
[null,null,null,null,null," "," "]
[null,null,null,null,null," "," "]
[null,null,null,null,null,null,{"$f":"SUM(G2:G6)","v":0}]

{"sheet":"ثبت اختراع","index":10,"n_rows":7,"n_cols":5,"rows_kept":7,"cut":false,"hidden":false,"merged":[]}
["برگشت","ردیف"," نام اثر","طبقه بندی اثر"," امتیاز"]
[null,null,null,null," "]
[{"$f":"COUNTA(C:C)","v":1},null,null,null," "]
[null,null,null,null," "]
[null,null,null,null," "]
[null,null,null,null," "]
[null,"جمع نهایی",null,null,{"$f":" SUM(E2:E6)","v":0}]

{"sheet":"کسب رتبه","index":11,"n_rows":7,"n_cols":6,"rows_kept":7,"cut":false,"hidden":false,"merged":[]}
["برگشت","ردیف ","عنوان جشنواره"," عنوان رتبه "," امتیاز"," مستندات "]
[null,null,null,null," "]
[null,null,null,null," "]
[null,null,null,null," "]
[null,null,null,null," "]
[null,null,null,null," "]
[null,"جمع",null,null,{"$f":" SUM(E2:E6)","v":0}]

{"sheet":"جذب گرنت","index":12,"n_rows":7,"n_cols":7,"rows_kept":7,"cut":false,"hidden":false,"merged":[]}
["برگشت","ردیف"," نام طرح گرنت  دار","مبلغ کل طرح","مقدار گرنت ","امتیاز تعلق گرفته ","امتیاز"]
[null,null,null,null,null,0]
[null,null,null,null,null,0]
[null,null,null,null,null,0]
[null,null,null,null,null,0]
[null,null,null,null,null,0]
[null,"جمع کل ",null,null,null,{"$f":"SUM(F2:F6)","v":0},{"$f":"SUM(G2:G6)","v":0}]

{"sheet":"داوری ","index":13,"n_rows":8,"n_cols":26,"rows_kept":8,"cut":false,"hidden":false,"merged":[]}
["برگشت","ردیف","نوع داوری","تعداد","امتیاز",null,null,null,null,null,null,null,null,null,null,null,null,null,null,null,null,null,null,null,"  دبیر علمی منطقه ايي  دو روز و کمتر ",15]
[null,null," کتاب",0,null,null,null,null,null,null,null,null,null,null,null,null,null,null,null,null,null,null,null,null,"  دبیر علمی سراسریدو روز و کمتر",20]
[null,null,"  مقالات خارجی"]
[null,null,"  مقالات داخلی",0]
[null,null," پایان نامه",0]
[null,null," طرح پژوهشی"]
[null,null,"جمع",null,{"$f":"SUM(E2:E6)","v":0}]
[null,null,null,null,0]

{"sheet":"فعالیت اجرایی","index":14,"n_rows":24,"n_cols":17,"rows_kept":24,"cut":false,"hidden":false,"merged":[]}
["برگشت","ردیف","عنوان فعالیت اجرایی"," امتیاز","امتیازنهایی","مستند",null,null,"عنوان فعالیت اجرایی","تعداد","امتیاز",null,null,null,null,"رییس مرکز تحقیقات",15]
[null,null,null,{"$f":"VLOOKUP(Table10[[#This Row],[عنوان فعالیت اجرایی]],$P$1:$Q$23,2,0)","v":{"$error":"#N/A"}},{"$f":"IF(ISNUMBER(D2),Table1012[[#This Row],[ امتیاز]],\" \")","v":" "},null,null,null," دبیری برنامه آموزش مداوم",null,{"$f":"J2*1","v":0},null,null,null,null,"معاون آموزشی بیمارستان",15]
[null,null,null,{"$f":"VLOOKUP(Table10[[#This Row],[عنوان فعالیت اجرایی]],$P$1:$Q$23,2,0)","v":{"$error":"#N/A"}},{"$f":"IF(ISNUMBER(D3),Table1012[[#This Row],[ امتیاز]],\" \")","v":" "},null,null,null,"سخنرانی آموزش مداوم",null,{"$f":"J3*0.5","v":0},null,null,null,null,"سرپرست EDC",15]
[null,null,null,{"$f":"VLOOKUP(Table10[[#This Row],[عنوان فعالیت اجرایی]],$P$1:$Q$23,2,0)","v":{"$error":"#N/A"}},{"$f":"IF(ISNUMBER(D4),Table1012[[#This Row],[ امتیاز]],\" \")","v":" "},null,null,null," ساعت همکاری در برگزاری  آزمون وارزیابی انجام شده",null,{"$f":"J4/5","v":0},null,null,null,null,"دبیر آموزش مداوم",15]
[null,null,null,{"$f":"VLOOKUP(Table10[[#This Row],[عنوان فعالیت اجرایی]],$P$1:$Q$23,2,0)","v":{"$error":"#N/A"}},{"$f":"IF(ISNUMBER(D5),Table1012[[#This Row],[ امتیاز]],\" \")","v":" "},null,null,null,null,null,null,null,null,null,null,"امورهیات علمی",15]
[null,null,null,{"$f":"VLOOKUP(Table10[[#This Row],[عنوان فعالیت اجرایی]],$P$1:$Q$23,2,0)","v":{"$error":"#N/A"}},{"$f":"IF(ISNUMBER(D6),Table1012[[#This Row],[ امتیاز]],\" \")","v":" "},null,null,null,null,null,null,null,null,null,null,"سرپرست کمیته تحقیقات دانشجویی",15]
[null,null,null,{"$f":"VLOOKUP(Table10[[#This Row],[عنوان فعالیت اجرایی]],$P$1:$Q$23,2,0)","v":{"$error":"#N/A"}},{"$f":"IF(ISNUMBER(D7),Table1012[[#This Row],[ امتیاز]],\" \")","v":" "},null,null,null,null,null,null,null,null,null,null,"مسوول اعتبار بخشی موسسه ای",15]
[null,null,null,{"$f":"VLOOKUP(Table10[[#This Row],[عنوان فعالیت اجرایی]],$P$1:$Q$23,2,0)","v":{"$error":"#N/A"}},{"$f":"IF(ISNUMBER(D8),Table1012[[#This Row],[ امتیاز]],\" \")","v":" "},null,null,null,null,null,null,null,null,null,null,"مسوول Edo بیمارستان",10]
[null,null,null,{"$f":"VLOOKUP(Table10[[#This Row],[عنوان فعالیت اجرایی]],$P$1:$Q$23,2,0)","v":{"$error":"#N/A"}},{"$f":"IF(ISNUMBER(D9),Table1012[[#This Row],[ امتیاز]],\" \")","v":" "},null,null,null,null,null,null,null,null,null,null,"مسوول Edo دانشکده",10]
[null,null,null,{"$f":"VLOOKUP(Table10[[#This Row],[عنوان فعالیت اجرایی]],$P$1:$Q$23,2,0)","v":{"$error":"#N/A"}},{"$f":"IF(ISNUMBER(D10),Table1012[[#This Row],[ امتیاز]],\" \")","v":" "},null,null,null,null,null,null,null,null,null,null,"مسوول  اساتید مشاور",10]
[null,"جمع",null,null,{"$f":"(SUM(E2:E10))+K2+K3+K4","v":0},null,null,null,null,null,null,null,null,null,null,"مسوول  المپیاد دانشجویی واستعداد درخشان",10]
[null,null,null,null,null,null,null,null,null,null,null,null,null,null,null,"مسئولین کمیته های EDC  ",10]
[null,null,null,null,null,null,null,null,null,null,null,null,null,null,null,"فعالیت در کمیته های اعتباربخشی رشته ای",10]
[null,null,null,null,null,null,null,null,null,null,null,null,null,null,null,"ﻓﻌﺎﻟﻴﺖ در ﻗﺎﻟﺐ ﻋﻀﻮﻳﺖ در ﻛﻤﻴﺘﻪ ﻫﺎ ﻳﺎ ﺷﻮراهاي ﺳﻄﺢ دانشکده با ابلاغ رئیس یا معاون دانشکده",5]
[null,null,null,null,null,null,null,null,null,null,null,null,null,null,null,"فعالیت در هیات تحریریه و اجرایی مجلات دانشگاهی",5]
[null,null,null,null,null,null,null,null,null,null,null,null,null,null,null,"تدوین برنامه عملیاتی دانشگاه",3]
[null,null,null,null,null,null,null,null,null,null,null,null,null,null,null,"تدوین برنامه عملیاتی دانشکده",2]
[null,null,null,null,null,null,null,null,null,null,null,null,null,null,null,"تدوین برنامه عملیاتی گروه",1]
[null,null,null,null,null,null,null,null,null,null,null,null,null,null,null,"رییس ودبیر علمی و اجرایی همایش یا کنگره",5]
[null,null,null,null,null,null,null,null,null,null,null,null,null,null,null,"دبیر اجرایی برنامه آموزش مداوم",3]
[null,null,null,null,null,null,null,null,null,null,null,null,null,null,null,"سخنرانی برنامه آموزش مداوم",1.5]
[null,null,null,null,null,null,null,null,null,null,null,null,null,null,null,"تشکیل تیم های دانشجویی برای انجام فعالیت های علمی وفرهنگی",2]
[null,null,null,null,null,null,null,null,null,null,null,null,null,null,null,"مشارکت موثر در فعالیتها و کمیته های علمی EDC و EDO ، کارشناس امور هیات علمی",3]
[null,null,null,null,null,null,null,null,null,null,null,null,null,null,null,"همکاری در برگزاری آزمون ها و ارزیابی های انجام شده",2]